fUST/lending_fUST_20250531
["ID","MTS","AMOUNT","RATE_DAILY","PERIOD"]
[363297611,1748662359201,-430.0,0.00017805,2]
[363297612,1748662359223,-430.0,0.00018078,2]
[363297613,1748662359246,-430.0,0.00018079,2]
[363297614,1748662359267,-430.0,0.00018352,2]
[363297615,1748662359289,-201.0,0.00018353,2]
[363297616,1748662818966,-500.0,0.00016208,2]
[363297618,1748662898224,160.746743,0.00013699,2]
[363297620,1748663142232,-12.256827,0.00016208,2]
[363297621,1748663142253,-262.31039211,0.00016474,2]
[363297622,1748663247084,-249.94643489,0.00016474,2]
[363297623,1748663247106,-39.78294001,0.00016708,2]
[363297624,1748663363173,-1160.21705999,0.00016708,2]
[363297625,1748663363193,-300.0,0.00016708,2]
[363297626,1748663363214,-300.0,0.00016708,2]
[363297627,1748663363236,-430.0,0.00016709,2]
[363297628,1748663363256,-430.0,0.00016709,2]
[363297629,1748663363276,-436.11384284,0.00016709,2]
[363297630,1748663363299,-430.0,0.00016709,2]
[363297631,1748663363320,-433.39964934,0.00016709,2]
[363297632,1748663363341,-430.0,0.00016709,2]
[363297633,1748663363362,-437.81816589,0.00016709,2]
[363297634,1748663363386,-440.83493996,0.00016709,2]
[363297635,1748663363410,-494.89476985,0.00016709,2]
[363297636,1748663363430,-8047.07828192,0.00016709,2]
[363297637,1748663363452,-512.256827,0.00016739,2]
[363297638,1748663363477,-422.24951676,0.00016983,2]
[363297639,1748663363498,-326.19704284,0.00016983,2]
[363297640,1748663363519,-459.2179497,0.00016983,2]
[363297641,1748663363540,-377.36217386,0.00016983,2]
[363297642,1748663363560,-399.02440646,0.00017005,2]
[363297686,1748663432280,-113.23241936,0.00017005,2]
[363297688,1748663432290,-256.12841291,0.00017271,2]
[363297690,1748663432299,-358.57977842,0.00017363,2]
[363297692,1748663432308,-170.66524464,0.00018039,2]
[363297711,1748663432487,-340.96525395,0.00018137,2]
[363297714,1748663432496,-368.18,0.00018137,2]
[363297718,1748663432506,-430.0,0.00018137,2]
[363297722,1748663432515,-476.66079836,0.00018137,2]
[363297725,1748663432524,-447.68273007,0.00018137,2]
[363297728,1748663432533,-430.0,0.00018137,2]
[363297730,1748663432542,-443.36372963,0.00018138,2]
[363297732,1748663432553,-464.66663164,0.00018138,2]
[363297736,1748663432563,-430.0,0.00018138,2]
[363297739,1748663432572,-440.56985517,0.00018138,2]
[363297742,1748663432582,-440.30703615,0.00018138,2]
[363297744,1748663432592,-361.33146275,0.00018138,2]
[363297746,1748663432601,-458.59034093,0.00018138,2]
[363297747,1748663432611,-460.14608756,0.00018138,2]
[363297748,1748663432620,-450.45743074,0.00018138,2]
[363297749,1748663432629,-536.39641322,0.00018138,2]
[363297750,1748663432639,-430.0,0.00018138,2]
[363297751,1748663432648,-430.0,0.00018138,2]
[363297752,1748663432658,-570.68017201,0.00018138,2]
[363297753,1748663432667,-430.0,0.00018138,2]
[363297754,1748663432676,-430.0,0.00018138,2]
[363297755,1748663432686,-430.0,0.00018138,2]
[363297756,1748663432695,-463.35541384,0.00018138,2]
[363297757,1748663432705,-480.1391673,0.00018138,2]
[363297758,1748663432716,-262.27629213,0.00018138,2]
[363297759,1748663432732,-167.72370787,0.00018138,2]
[363297760,1748663432742,-430.0,0.00018138,2]
[363297761,1748663432752,-467.89001272,0.00018138,2]
[363297762,1748663432761,-430.0,0.00018138,2]
[363297763,1748663432771,-430.0,0.00018138,2]
[363297764,1748663432780,-430.0,0.00018138,2]
[363297765,1748663432790,-430.0,0.00018138,2]
[363297766,1748663432799,-430.0,0.00018138,2]
[363297767,1748663432809,-494.94344897,0.00018138,2]
[363297768,1748663432818,-430.0,0.00018138,2]
[363297769,1748663432828,-430.0,0.00018138,2]
[363297770,1748663432837,-430.0,0.00018138,2]
[363297771,1748663432847,-430.0,0.00018138,2]
[363297772,1748663432855,-430.0,0.00018138,2]
[363297773,1748663432865,-430.0,0.00018138,2]
[363297774,1748663432874,-268.69432309,0.00018138,2]
[363297775,1748663432884,-452.46870699,0.00018138,2]
[363297776,1748663432893,-430.0,0.00018138,2]
[363297777,1748663432902,-438.25333035,0.00018138,2]
[363297778,1748663432912,-430.0,0.00018138,2]
[363297779,1748663432923,-430.0,0.00018138,2]
[363297780,1748663432932,-430.0,0.00018138,2]
[363297781,1748663432941,-553.42206027,0.00018138,2]
[363297782,1748663432951,-430.0,0.00018138,2]
[363297783,1748663432964,-479.75545402,0.00018138,2]
[363297784,1748663432973,-430.0,0.00018138,2]
[363297785,1748663432983,-520.97359645,0.00018138,2]
[363297786,1748663432992,-430.0,0.00018138,2]
[363297787,1748663433002,-430.0,0.00018138,2]
[363297788,1748663433011,-441.15526496,0.00018138,2]
[363297789,1748663433026,-344.95412144,0.00018138,2]
[363297790,1748663433038,-430.0,0.00018138,2]
[363297791,1748663433048,-430.0,0.00018138,2]
[363297792,1748663433057,-430.0,0.00018139,2]
[363297793,1748663433067,-438.88469039,0.00018139,2]
[363297794,1748663433077,-327.27744183,0.00018139,2]
[363297795,1748663433087,-430.0,0.00018139,2]
[363297796,1748663433096,-423.51459779,0.00018139,2]
[363297797,1748663433106,-430.0,0.00018139,2]
[363297798,1748663433116,-430.0,0.00018139,2]
[363297799,1748663433126,-430.0,0.00018139,2]
[363297800,1748663433135,-430.0,0.00018139,2]
[363297801,1748663433145,-430.0,0.00018139,2]
[363297802,1748663433154,-430.0,0.00018139,2]
[363297803,1748663433163,-430.0,0.00018139,2]
[363297804,1748663433173,-430.0,0.00018139,2]
[363297805,1748663433182,-430.0,0.00018139,2]
[363297806,1748663433192,-430.0,0.00018139,2]
[363297807,1748663433201,-430.0,0.00018139,2]
[363297808,1748663433213,-430.0,0.00018139,2]
[363297809,1748663433222,-430.0,0.00018139,2]
[363297810,1748663433231,-430.0,0.00018139,2]
[363297811,1748663433240,-430.0,0.00018139,2]
[363297812,1748663433250,-430.0,0.00018139,2]
[363297813,1748663433259,-430.0,0.00018139,2]
[363297814,1748663433268,-430.0,0.00018139,2]
[363297815,1748663433278,-430.0,0.00018139,2]
[363297816,1748663433288,-430.0,0.00018139,2]
[363297817,1748663433297,-430.0,0.00018139,2]
[363297818,1748663433311,-430.0,0.00018139,2]
[363297819,1748663433320,-430.0,0.00018139,2]
[363297820,1748663433330,-430.0,0.00018139,2]
[363297821,1748663433339,-430.0,0.00018139,2]
[363297822,1748663433349,-430.0,0.00018139,2]
[363297823,1748663433359,-546.25,0.00018139,2]
[363297824,1748663433368,-430.0,0.00018139,2]
[363297825,1748663433378,-430.0,0.00018139,2]
[363297826,1748663433387,-436.49426296,0.00018139,2]
[363297827,1748663433398,-430.0,0.00018139,2]
[363297828,1748663433411,-430.0,0.00018139,2]
[363297829,1748663433421,-430.0,0.00018139,2]
[363297830,1748663433430,-474.48,0.00018139,2]
[363297831,1748663433439,-546.19667775,0.00018139,2]
[363297832,1748663433449,-430.0,0.00018139,2]
[363297833,1748663433459,-299.455,0.00018139,2]
[363297834,1748663433470,-174.24,0.00018139,2]
[363297835,1748663433480,-430.0,0.00018139,2]
[363297836,1748663433489,-430.0,0.00018139,2]
[363297837,1748663433498,-430.0,0.00018139,2]
[363297838,1748663433508,-430.0,0.00018139,2]
[363297839,1748663433519,-436.94596919,0.00018139,2]
[363297840,1748663433529,-430.0,0.00018139,2]
[363297841,1748663433539,-209.30534601,0.00018139,2]
[363297842,1748663433549,-430.0,0.00018139,2]
[363297843,1748663433560,-430.0,0.00018139,2]
[363297844,1748663433570,-430.0,0.00018139,2]
[363297845,1748663433581,-430.0,0.00018139,2]
[363297846,1748663433591,-430.0,0.00018139,2]
[363297847,1748663433601,-430.0,0.00018139,2]
[363297848,1748663433611,-411.65051915,0.00018139,2]
[363297849,1748663433621,-452.32583372,0.00018139,2]
[363297850,1748663433630,-437.01247411,0.00018139,2]
[363297851,1748663433640,-430.0,0.00018139,2]
[363297852,1748663433651,-430.0,0.00018139,2]
[363297853,1748663433660,-430.0,0.0001814,2]
[363297854,1748663433669,-385.07061499,0.0001814,2]
[363297855,1748663433679,-399.16443416,0.0001814,2]
[363297856,1748663433688,-439.34422623,0.0001814,2]
[363297857,1748663433698,-228.89081659,0.0001814,2]
[363297858,1748663433707,-459.6930248,0.0001814,2]
[363297859,1748663433717,-470.62253172,0.0001814,2]
[363297860,1748663433728,-462.3489687,0.0001814,2]
[363297861,1748663433737,-347.64559874,0.0001814,2]
[363297862,1748663433747,-431.80173867,0.0001814,2]
[363297863,1748663433756,-432.13675793,0.0001814,2]
[363297864,1748663433766,-434.94678445,0.0001814,2]
[363297865,1748663433776,-452.80682286,0.0001814,2]
[363297866,1748663433786,-432.92056663,0.0001814,2]
[363297867,1748663433796,-442.3104358,0.0001814,2]
[363297868,1748663433805,-409.33867448,0.0001814,2]
[363297869,1748663433814,-442.22929818,0.0001814,2]
[363297870,1748663433824,-435.22401969,0.0001814,2]
[363297871,1748663433833,-436.87609397,0.0001814,2]
[363297872,1748663433843,-436.92975843,0.0001814,2]
[363297873,1748663433852,-481.0736828,0.0001814,2]
[363297874,1748663433862,-434.33194965,0.0001814,2]
[363297875,1748663433871,-446.71684495,0.0001814,2]
[363297876,1748663433880,-439.62245859,0.0001814,2]
[363297877,1748663433889,-436.35157342,0.0001814,2]
[363297878,1748663433899,-431.65342659,0.0001814,2]
[363297879,1748663433908,-449.39794547,0.0001814,2]
[363297880,1748663433918,-436.15429604,0.0001814,2]
[363297881,1748663433927,-434.28210218,0.0001814,2]
[363297882,1748663433936,-248.70709383,0.0001814,2]
[363297883,1748663433946,-202.63310552,0.0001814,2]
[363297884,1748663433955,-437.10441803,0.0001814,2]
[363297885,1748663433965,-436.1698294,0.0001814,2]
[363297886,1748663433975,-307.51201152,0.0001814,2]
[363297887,1748663433985,-433.71085969,0.0001814,2]
[363297888,1748663433994,-436.4890681,0.0001814,2]
[363297889,1748663434003,-433.23071517,0.0001814,2]
[363297890,1748663434012,-434.42182976,0.0001814,2]
[363297891,1748663434022,-346.93743569,0.0001814,2]
[363297892,1748663434031,-402.56515861,0.0001814,2]
[363297893,1748663434041,-437.69648746,0.0001814,2]
[363297894,1748663434050,-379.31986077,0.0001814,2]
[363297895,1748663434059,-336.63165638,0.0001814,2]
[363297896,1748663434068,-430.0,0.0001814,2]
[363297897,1748663434078,-551.44292279,0.0001814,2]
[363297898,1748663434087,-434.15613833,0.0001814,2]
[363297899,1748663434096,-430.0,0.0001814,2]
[363297900,1748663434107,-431.63546699,0.0001814,2]
[363297901,1748663434117,-442.26939837,0.0001814,2]
[363297902,1748663434126,-435.76796053,0.0001814,2]
[363297903,1748663434135,-408.04564791,0.0001814,2]
[363297904,1748663434144,-434.5305359,0.0001814,2]
[363297905,1748663434154,-434.76932642,0.0001814,2]
[363297906,1748663434163,-433.49341277,0.0001814,2]
[363297907,1748663434172,-546.51801003,0.0001814,2]
[363297908,1748663434182,-435.66469328,0.0001814,2]
[363297909,1748663434192,-237.524676,0.0001814,2]
[363297910,1748663434201,-448.89465844,0.0001814,2]
[363297911,1748663434211,-435.20902154,0.0001814,2]
[363297912,1748663434221,-409.55357585,0.0001814,2]
[363297913,1748663434230,-160.08088562,0.0001814,2]
[363297914,1748663434240,-436.88083122,0.0001814,2]
[363297915,1748663434249,-440.20769722,0.0001814,2]
[363297916,1748663434258,-430.0,0.0001814,2]
[363297917,1748663434268,-430.0,0.0001814,2]
[363297918,1748663434278,-435.81064044,0.0001814,2]
[363297919,1748663434288,-434.00852231,0.0001814,2]
[363297920,1748663434297,-507.47723697,0.0001814,2]
[363297921,1748663434307,-441.90581695,0.0001814,2]
[363297922,1748663434316,-438.56148351,0.0001814,2]
[363297923,1748663434327,-430.0,0.0001814,2]
[363297924,1748663434336,-430.0,0.0001814,2]
[363297925,1748663434345,-439.43117706,0.0001814,2]
[363297926,1748663434354,-430.0,0.0001814,2]
[363297927,1748663434363,-224.75134028,0.0001814,2]
[363297928,1748663434372,-444.17368234,0.0001814,2]
[363297929,1748663434382,-430.0,0.0001814,2]
[363297930,1748663434391,-432.70167043,0.0001814,2]
[363297931,1748663434402,-430.0,0.0001814,2]
[363297932,1748663434413,-434.43684232,0.0001814,2]
[363297933,1748663434422,-433.95277589,0.0001814,2]
[363297934,1748663434431,-448.88079778,0.0001814,2]
[363297935,1748663434440,-430.0,0.0001814,2]
[363297936,1748663434450,-203.40894615,0.0001814,2]
[363297937,1748663434459,-449.89146623,0.0001814,2]
[363297938,1748663434469,-453.71109718,0.0001814,2]
[363297939,1748663434479,-455.49647646,0.0001814,2]
[363297940,1748663434488,-430.0,0.0001814,2]
[363297941,1748663434498,-430.0,0.0001814,2]
[363297942,1748663434507,-430.0,0.0001814,2]
[363297943,1748663434517,-440.51284635,0.0001814,2]
[363297944,1748663434526,-430.0,0.0001814,2]
[363297945,1748663434535,-323.48959674,0.0001814,2]
[363297946,1748663434545,-430.0,0.0001814,2]
[363297947,1748663434554,-348.96900101,0.0001814,2]
[363297948,1748663434564,-430.0,0.0001814,2]
[363297949,1748663434573,-372.99862815,0.0001814,2]
[363297950,1748663434583,-276.34145707,0.0001814,2]
[363297951,1748663434592,-443.10927191,0.0001814,2]
[363297952,1748663434602,-430.0,0.0001814,2]
[363297953,1748663434611,-430.0,0.0001814,2]
[363297954,1748663434620,-196.22650918,0.0001814,2]
[363297955,1748663434629,-300.04468864,0.0001814,2]
[363297956,1748663434638,-430.0,0.0001814,2]
[363297957,1748663434648,-440.29924747,0.0001814,2]
[363297958,1748663434657,-430.0,0.0001814,2]
[363297959,1748663434667,-430.0,0.0001814,2]
[363297960,1748663434676,-430.0,0.0001814,2]
[363297961,1748663434687,-430.0,0.0001814,2]
[363297962,1748663434697,-430.0,0.0001814,2]
[363297963,1748663434708,-430.0,0.0001814,2]
[363297964,1748663434718,-357.61767843,0.0001814,2]
[363297965,1748663434727,-401.5212088,0.0001814,2]
[363297966,1748663434736,-346.13399919,0.0001814,2]
[363297967,1748663434745,-404.45491883,0.0001814,2]
[363297968,1748663434755,-372.52964607,0.0001814,2]
[363297969,1748663434764,-430.0,0.0001814,2]
[363297970,1748663434773,-487.4086284,0.0001814,2]
[363297971,1748663434782,-454.02665859,0.0001814,2]
[363297972,1748663434792,-452.42408844,0.0001814,2]
[363297973,1748663434802,-450.36389722,0.0001814,2]
[363297974,1748663434811,-430.0,0.0001814,2]
[363297975,1748663434820,-280.36193509,0.0001814,2]
[363297976,1748663434830,-430.0,0.0001814,2]
[363297977,1748663434839,-464.17525531,0.0001814,2]
[363297978,1748663434848,-600.0,0.00018164,2]
[363297979,1748663434857,-500.0,0.00018257,2]
[363297980,1748663434867,-433.97575212,0.00018337,2]
[363297981,1748663434875,-500.0,0.00018337,2]
[363297982,1748663434885,-500.0,0.00018337,2]
[363297983,1748663434894,-430.0,0.00018411,2]
[363297984,1748663434903,-428.81180592,0.00018411,2]
[363297985,1748663434913,-458.19156766,0.00018412,2]
[363297986,1748663434922,-434.4569948,0.00018412,2]
[363297987,1748663434931,-457.05545894,0.00018412,2]
[363297988,1748663434939,-498.49118783,0.00018412,2]
[363297989,1748663434949,-430.0,0.00018412,2]
[363297990,1748663434957,-476.20265612,0.00018412,2]
[363297991,1748663434967,-441.63903218,0.00018412,2]
[363297992,1748663434976,-218.96348306,0.00018412,2]
[363297993,1748663434986,-430.0,0.00018412,2]
[363297994,1748663434995,-442.72994065,0.00018412,2]
[363297995,1748663435004,-430.0,0.00018412,2]
[363297996,1748663435015,-430.0,0.00018412,2]
[363297997,1748663435026,-508.65450548,0.00018412,2]
[363297998,1748663435037,-497.64602961,0.00018412,2]
[363297999,1748663435046,-301.20904026,0.00018412,2]
[363298000,1748663435055,-265.1889273,0.00018412,2]
[363298001,1748663435064,-430.0,0.00018412,2]
[363298002,1748663435073,-430.0,0.00018412,2]
[363298003,1748663435082,-518.93940588,0.00018412,2]
[363298004,1748663435091,-463.94134968,0.00018412,2]
[363298005,1748663435100,-430.0,0.00018412,2]
[363298006,1748663435109,-522.61794835,0.00018412,2]
[363298007,1748663435118,-488.99732206,0.00018412,2]
[363298008,1748663435128,-441.42446355,0.00018412,2]
[363298009,1748663435137,-453.82452413,0.00018412,2]
[363298010,1748663435146,-455.1236059,0.00018412,2]
[363298011,1748663435155,-518.74370454,0.00018412,2]
[363298012,1748663435164,-497.27110712,0.00018412,2]
[363298013,1748663435173,-430.0,0.00018413,2]
[363298014,1748663435182,-430.0,0.00018413,2]
[363298015,1748663435191,-430.0,0.00018413,2]
[363298016,1748663435200,-430.0,0.00018413,2]
[363298017,1748663435209,-430.0,0.00018413,2]
[363298018,1748663435219,-430.0,0.00018413,2]
[363298019,1748663435228,-430.0,0.00018413,2]
[363298020,1748663435237,-430.0,0.00018413,2]
[363298021,1748663435246,-494.71879366,0.00018413,2]
[363298022,1748663435255,-430.0,0.00018413,2]
[363298023,1748663435264,-430.0,0.00018413,2]
[363298024,1748663435273,-430.0,0.00018413,2]
[363298025,1748663435282,-430.0,0.00018413,2]
[363298026,1748663435292,-430.0,0.00018413,2]
[363298027,1748663435302,-430.0,0.00018413,2]
[363298028,1748663435312,-290.42,0.00018413,2]
[363298029,1748663435321,-430.0,0.00018413,2]
[363298030,1748663435330,-430.0,0.00018413,2]
[363298031,1748663435339,-438.04995506,0.00018413,2]
[363298032,1748663435349,-430.0,0.00018413,2]
[363298033,1748663435359,-430.0,0.00018413,2]
[363298034,1748663435370,-430.0,0.00018413,2]
[363298035,1748663435380,-430.0,0.00018413,2]
[363298036,1748663435390,-430.0,0.00018413,2]
[363298037,1748663435399,-430.0,0.00018413,2]
[363298038,1748663435413,-430.0,0.00018413,2]
[363298039,1748663435423,-430.0,0.00018413,2]
[363298040,1748663435432,-447.74844713,0.00018413,2]
[363298041,1748663435441,-430.0,0.00018413,2]
[363298042,1748663435451,-430.0,0.00018413,2]
[363298043,1748663435459,-430.0,0.00018413,2]
[363298044,1748663435471,-430.0,0.00018413,2]
[363298045,1748663435481,-351.32737603,0.00018413,2]
[363298046,1748663435490,-430.0,0.00018413,2]
[363298047,1748663435500,-430.0,0.00018413,2]
[363298048,1748663435509,-271.25,0.00018413,2]
[363298049,1748663435518,-430.0,0.00018413,2]
[363298050,1748663435527,-430.0,0.00018413,2]
[363298051,1748663435536,-430.0,0.00018413,2]
[363298052,1748663435546,-430.0,0.00018413,2]
[363298053,1748663435555,-430.0,0.00018414,2]
[363298054,1748663435565,-438.20431137,0.00018414,2]
[363298055,1748663435575,-430.0,0.00018414,2]
[363298056,1748663435584,-430.0,0.00018414,2]
[363298057,1748663435593,-258.1198506,0.00018414,2]
[363298058,1748663435603,-439.74207819,0.00018414,2]
[363298059,1748663435612,-437.60225778,0.00018414,2]
[363298060,1748663435621,-436.36702938,0.00018414,2]
[363298061,1748663435631,-454.61383937,0.00018414,2]
[363298062,1748663435640,-193.00883078,0.00018414,2]
[363298063,1748663435649,-439.59055892,0.00018414,2]
[363298064,1748663435659,-439.16968589,0.00018414,2]
[363298065,1748663435668,-430.0,0.00018414,2]
[363298066,1748663435678,-430.0,0.00018414,2]
[363298067,1748663435688,-288.03670696,0.00018468,2]
[363298068,1748663435697,-451.2004311,0.00018468,2]
[363298069,1748663435707,-430.0,0.00018468,2]
[363298070,1748663435719,-302.00059053,0.00018468,2]
[363298071,1748663435729,-275.20123508,0.00018468,2]
[363298072,1748663435739,-444.02151517,0.00018468,2]
[363298073,1748663435748,-449.04560754,0.00018468,2]
[363298074,1748663435757,-438.63134842,0.00018468,2]
[363298075,1748663435767,-430.0,0.00018468,2]
[363298076,1748663435777,-436.77579665,0.00018468,2]
[363298077,1748663435787,-430.0,0.00018468,2]
[363298078,1748663435796,-442.4470899,0.00018468,2]
[363298079,1748663435805,-438.54701923,0.00018468,2]
[363298080,1748663435814,-436.71107554,0.00018468,2]
[363298081,1748663435823,-430.0,0.00018468,2]
[363298082,1748663435939,-430.0,0.00018468,2]
[363298083,1748663435960,-473.9656851,0.00018468,2]
[363298084,1748663435970,-443.94823008,0.00018468,2]
[363298085,1748663435979,-430.0,0.00018468,2]
[363298086,1748663435989,-430.0,0.00018468,2]
[363298087,1748663435998,-435.67203166,0.00018468,2]
[363298088,1748663436008,-430.0,0.00018468,2]
[363298089,1748663436018,-430.0,0.00018468,2]
[363298090,1748663436027,-430.0,0.00018468,2]
[363298091,1748663436037,-430.0,0.00018468,2]
[363298092,1748663436046,-430.0,0.00018468,2]
[363298093,1748663436056,-430.0,0.00018468,2]
[363298094,1748663436065,-430.0,0.00018468,2]
[363298095,1748663436075,-524.58814589,0.00018468,2]
[363298096,1748663436084,-430.0,0.00018468,2]
[363298097,1748663436093,-430.0,0.00018468,2]
[363298098,1748663436103,-430.0,0.00018468,2]
[363298099,1748663436112,-430.0,0.00018468,2]
[363298100,1748663436122,-430.0,0.00018468,2]
[363298101,1748663436131,-430.0,0.00018468,2]
[363298102,1748663436141,-430.0,0.00018468,2]
[363298103,1748663436150,-430.0,0.00018468,2]
[363298104,1748663436160,-430.0,0.00018468,2]
[363298105,1748663436169,-430.0,0.00018468,2]
[363298106,1748663436179,-438.92733359,0.00018468,2]
[363298107,1748663436188,-430.0,0.00018468,2]
[363298108,1748663436198,-435.74716516,0.00018468,2]
[363298109,1748663436207,-160.0,0.00018468,2]
[363298110,1748663436219,-229.3428821,0.00018505,2]
[363298111,1748663436230,-160.0,0.00018505,2]
[363298112,1748663436240,-212.77096907,0.00018505,2]
[363298113,1748663436249,-12664.98044988,0.00018505,2]
[363298114,1748663436259,-423.4608169,0.00018505,2]
[363298115,1748663436269,-842.5625,0.00018505,2]
[363298116,1748663436279,-160.0,0.00018505,2]
[363298117,1748663436288,-160.0,0.0001851,2]
[363298118,1748663436298,-500.0,0.00018559,2]
[363298119,1748663436307,-500.0,0.00018559,2]
[363298120,1748663436317,-430.0,0.00018685,2]
[363298121,1748663436327,-500.0,0.00018685,2]
[363298122,1748663436337,-459.14610629,0.00018685,2]
[363298123,1748663436346,-328.94,0.00018686,2]
[363298124,1748663436356,-442.06297159,0.00018686,2]
[363298125,1748663436365,-507.9340357,0.00018686,2]
[363298126,1748663436375,-446.24246344,0.00018686,2]
[363298127,1748663436384,-477.85352689,0.00018686,2]
[363298128,1748663436393,-239.63107026,0.00018686,2]
[363298129,1748663436403,-430.0,0.00018687,2]
[363298130,1748663436420,-430.0,0.00018687,2]
[363298131,1748663436430,-430.0,0.00018687,2]
[363298132,1748663436440,-430.0,0.00018687,2]
[363298133,1748663436450,-430.0,0.00018687,2]
[363298134,1748663436460,-430.0,0.00018687,2]
[363298135,1748663436473,-430.0,0.00018687,2]
[363298136,1748663436483,-220.95,0.00018687,2]
[363298137,1748663436493,-430.0,0.00018687,2]
[363298138,1748663436502,-430.0,0.00018687,2]
[363298139,1748663436512,-430.0,0.00018687,2]
[363298140,1748663436522,-430.0,0.00018687,2]
[363298141,1748663436532,-479.34804263,0.00018687,2]
[363298142,1748663436541,-430.0,0.00018687,2]
[363298143,1748663436551,-430.0,0.00018687,2]
[363298144,1748663436560,-430.0,0.00018687,2]
[363298145,1748663436569,-430.0,0.00018687,2]
[363298146,1748663436578,-430.0,0.00018687,2]
[363298147,1748663436587,-430.0,0.00018687,2]
[363298148,1748663436596,-430.0,0.00018687,2]
[363298149,1748663436606,-430.0,0.00018687,2]
[363298150,1748663436615,-430.0,0.00018687,2]
[363298151,1748663436625,-430.0,0.00018687,2]
[363298152,1748663436634,-430.0,0.00018687,2]
[363298153,1748663436643,-578.8,0.00018687,2]
[363298154,1748663436863,-430.0,0.00018687,2]
[363298155,1748663436873,-494.78393435,0.00018687,2]
[363298156,1748663436883,-430.0,0.00018687,2]
[363298157,1748663436892,-430.0,0.00018688,2]
[363298158,1748663436902,-212.83992685,0.00018688,2]
[363298159,1748663436912,-445.45843517,0.00018742,2]
[363298160,1748663436921,-184.87,0.00018742,2]
[363298161,1748663436931,-430.0,0.00018742,2]
[363298162,1748663436940,-430.0,0.00018742,2]
[363298163,1748663436950,-435.83900307,0.00018742,2]
[363298164,1748663436959,-510.28330677,0.00018742,2]
[363298165,1748663436969,-441.69725881,0.00018742,2]
[363298166,1748663436979,-428.97841648,0.00018742,2]
[363298167,1748663436988,-201.23,0.00018742,2]
[363298168,1748663436997,-437.76828262,0.00018742,2]
[363298169,1748663437006,-451.62023258,0.00018742,2]
[363298170,1748663437016,-430.0,0.00018742,2]
[363298171,1748663437025,-430.0,0.00018742,2]
[363298172,1748663437034,-430.0,0.00018742,2]
[363298173,1748663437043,-430.0,0.00018742,2]
[363298174,1748663437053,-430.0,0.00018742,2]
[363298175,1748663437062,-435.58532988,0.00018742,2]
[363298176,1748663437072,-430.0,0.00018742,2]
[363298177,1748663437081,-430.0,0.00018742,2]
[363298178,1748663437091,-430.0,0.00018742,2]
[363298179,1748663437100,-2778.09717556,0.000189,2]
[363298180,1748663437109,-430.0,0.00018959,2]
[363298181,1748663437118,-430.0,0.00018961,2]
[363298182,1748663437128,-430.0,0.00018961,2]
[363298183,1748663437138,-430.0,0.00018961,2]
[363298184,1748663437147,-460.97598513,0.00018961,2]
[363298185,1748663437156,-430.0,0.00018961,2]
[363298186,1748663437166,-287.63284576,0.00018961,2]
[363298187,1748663437175,-430.0,0.00018961,2]
[363298188,1748663437185,-430.0,0.00018961,2]
[363298189,1748663437194,-430.0,0.00018961,2]
[363298190,1748663437203,-430.0,0.00018961,2]
[363298191,1748663437214,-430.0,0.00018961,2]
[363298192,1748663437223,-430.0,0.00018961,2]
[363298193,1748663437233,-430.0,0.00018961,2]
[363298194,1748663437242,-363.42,0.00018962,2]
[363298195,1748663437251,-462.78033214,0.00019016,2]
[363298196,1748663437260,-460.54635009,0.00019016,2]
[363298197,1748663437269,-163.58521109,0.00019016,2]
[363298198,1748663437279,-430.0,0.00019016,2]
[363298199,1748663437288,-430.0,0.00019016,2]